lending/lending_fUSD_20250516
["ID","MTS","AMOUNT","RATE_DAILY","PERIOD"]
[361270586,1747409432057,-364.256013,0.0001383,2]
[361270587,1747409432067,-153.25950475,0.000139,2]
[361270588,1747409432077,-153.67080794,0.000139,2]
[361270589,1747409432087,-1200.0,0.00013998,2]
[361270590,1747409432096,-300.0,0.00013998,2]
[361270591,1747409432106,-300.0,0.00013998,2]
[361270592,1747409432115,-275.65156649,0.00013999,2]
[361270593,1747409432125,-500.0,0.00013999,2]
[361270594,1747409432135,-500.0,0.00013999,2]
[361270595,1747409432145,-500.0,0.00013999,2]
[361270596,1747409432155,-500.0,0.00013999,2]
[361270597,1747409432165,-500.0,0.00013999,2]
[361270598,1747409432175,-500.0,0.00013999,2]
[361270599,1747409432184,-500.0,0.00013999,2]
[361270600,1747409432194,-500.0,0.00013999,2]
[361270601,1747409432204,-500.0,0.00013999,2]
[361270602,1747409432215,-500.0,0.00013999,2]
[361270603,1747409432225,-500.0,0.00013999,2]
[361270604,1747409432235,-530.09802069,0.00013999,2]
[361270605,1747409432244,-500.0,0.00013999,2]
[361270606,1747409432255,-500.0,0.00013999,2]
[361270607,1747409432265,-500.0,0.00013999,2]
[361270608,1747409432275,-500.0,0.00013999,2]
[361270609,1747409432285,-500.0,0.00013999,2]
[361270610,1747409432295,-500.0,0.00013999,2]
[361270611,1747409432304,-500.0,0.00013999,2]
[361270612,1747409432314,-500.0,0.00013999,2]
[361270613,1747409432323,-500.0,0.00013999,2]
[361270614,1747409432333,-500.0,0.00013999,2]
[361270615,1747409432343,-296.29618361,0.00013999,2]
[361270616,1747409432353,-500.0,0.00013999,2]
[361270617,1747409432363,-298805.79617841,0.00014,2]
[361270618,1747409432372,-341642.99165758,0.00014,2]
[361270620,1747409432384,-8319.7704044,0.00014,2]
[361270623,1747409432396,-317.39266771,0.00014,2]
[361270624,1747409432407,-281.98868712,0.00014,2]
[361270657,1747409433226,-23656.28657125,0.00014,2]
[361270658,1747409433258,-15434.3,0.00014,2]
[361270659,1747409433291,-470.18349059,0.00014,2]
[361270660,1747409433302,-250.0,0.00014,2]
[361270661,1747409433313,-449.93201453,0.00014,2]
[361270662,1747409433339,-2040.00004,0.00014,2]
[361270663,1747409433370,-2564.20000002,0.00014,2]
[361270666,1747409437860,-540.78080028,0.00014,2]
[361270667,1747409437872,-20836.0,0.00014,2]
[361270668,1747409437915,-311.184893,0.00014,2]
[361270669,1747409437927,-36471.73559728,0.00014,2]
[361270670,1747409437936,-212.06444913,0.00014,2]
[361270671,1747409437946,-500.0,0.00014,2]
[361270672,1747409437956,-200.75,0.0001433,2]
[361270673,1747409437967,-500.0,0.000145,2]
[361270674,1747409437976,-500.0,0.000145,2]
[361270675,1747409437987,-500.0,0.000145,2]
[361270676,1747409437999,-1000.0,0.00014548,2]
[361270677,1747409438009,-153.25950475,0.00014771,2]
[361270678,1747409438020,-1000.0,0.00014965,2]
[361270679,1747409438031,-161.94,0.0001502,2]
[361270680,1747409438040,-150.0,0.0001502,7]
[361270681,1747409438050,-4000.0,0.0001502,2]
[361270682,1747409438061,-500.0,0.00015048,2]
[361270683,1747409438072,-1000.0,0.00015048,2]
[361270684,1747409438082,-39.17968131,0.00015048,2]
[361270857,1747409440345,-331.86921268,0.00015048,2]
[361270864,1747409444443,-284.3,0.00015048,2]
[361270865,1747409444455,-344.65110601,0.00015048,2]
[361270866,1747409444465,-166.68,0.00015049,2]
[361270867,1747409444477,-1500.0,0.00015096,2]
[361270868,1747409444486,-345.67,0.00015145,2]
[361270869,1747409444496,-572.01,0.00015249,2]
[361270870,1747409444505,-418.06217145,0.00015336,2]
[361270871,1747409444517,-1.93782855,0.00015336,2]
[361270872,1747409444527,-581.98,0.00015366,2]
[361270873,1747409444537,-3101.51977798,0.00015372,2]
[361270874,1747409444546,-428.0,0.00015398,2]
[361270875,1747409444556,-834.89468261,0.000154,2]
[361270876,1747409444565,-154.19,0.00015421,2]
[361270877,1747409444575,-4000.0,0.00015443,2]
[361270878,1747409444584,-154.19,0.00015447,2]
[361270879,1747409444594,-1039.36731057,0.00015463,2]
[361270880,1747409444603,-207.4,0.00015463,2]
[361270881,1747409444613,-166.92,0.0001547,2]
[361270882,1747409444622,-415676.24262174,0.00015472,2]
[361270883,1747409444631,-154.19,0.00015472,2]
[361270884,1747409444641,-499.99,0.00015472,2]
[361270885,1747409444651,-150.99,0.00015472,2]
[361270886,1747409444660,-571.75,0.00015472,2]
[361270887,1747409444669,-150.99,0.00015472,2]
[361270888,1747409444679,-1149.97,0.00015472,2]
[361270889,1747409444689,-299.99,0.00015472,2]
[361270890,1747409444698,-45935.51,0.00015472,2]
[361270891,1747409444708,-1843.39,0.00015472,2]
[361270892,1747409444718,-250.0,0.00015482,2]
[361270893,1747409444727,-180.27,0.00015482,2]
[361270894,1747409444737,-154.19,0.00015498,2]
[361270895,1747409444746,-3101.51977795,0.00015571,2]
[361270896,1747409444756,-1500.0,0.00015596,2]
[361270897,1747409444766,-1500.0,0.00015596,2]
[361270898,1747409444775,-2073.9276,0.00015632,2]
[361270899,1747409444785,-153.25950475,0.00015642,2]
[361270900,1747409444794,-500.0,0.00015644,2]
[361270901,1747409444803,-170.01,0.00015678,2]
[361270902,1747409444813,-1078.42,0.000157,2]
[361270903,1747409444823,-1078.42,0.000157,2]
[361270904,1747409444832,-1078.42,0.000157,2]
[361270905,1747409444842,-1078.42,0.000157,2]
[361270906,1747409444852,-1078.42,0.000157,2]
[361270907,1747409444861,-700.0,0.000157,5]
[361270908,1747409444871,-170.01,0.00015724,2]
[361270909,1747409444880,-170.01,0.00015724,2]
[361270910,1747409444890,-24432.30463753,0.00015732,2]
[361270911,1747409444899,-3101.51977795,0.00015769,2]
[361270912,1747409444908,-1500.0,0.000158,5]
[361270913,1747409444918,-572.01,0.00015821,2]
[361270914,1747409444927,-170.01,0.00015878,2]
[361270915,1747409444937,-170.01,0.00015878,2]
[361270916,1747409444947,-150.0,0.0001589,2]
[361270917,1747409444956,-2300.0,0.000159,5]
[361270918,1747409444968,-3101.51977795,0.00015968,2]
[361270919,1747409444981,-170.01,0.00015978,2]
[361270920,1747409444994,-1000.0,0.00016,3]
[361270921,1747409445004,-1000.0,0.00016,3]
[361270922,1747409445014,-170.01,0.00016053,2]
[361270925,1747409445024,-170.01,0.00016053,2]
[361270928,1747409445034,-170.01,0.00016053,2]
[361270929,1747409445044,-339.99,0.00016053,2]
[361270930,1747409445053,-170.01,0.00016053,2]
[361270931,1747409445063,-170.01,0.00016053,2]
[361270932,1747409445073,-170.01,0.00016053,2]
[361270933,1747409445081,-170.01,0.00016053,2]
[361270934,1747409445090,-339.77,0.00016053,2]
[361270935,1747409445099,-3538.91,0.00016116,2]
[361270936,1747409445108,-2902.73,0.00016116,2]
[361270937,1747409445118,-2412.61,0.00016116,2]
[361270938,1747409445127,-200.75,0.00016122,2]
[361270939,1747409445136,-8816.34,0.00016138,2]
[361270941,1747409445145,-2000.0,0.00016144,2]
[361270942,1747409445154,-215.88467533,0.00016144,2]
[361270943,1747409445164,-3101.51977795,0.00016167,2]
[361270944,1747409445173,-1000.0,0.000162,2]
[361270945,1747409445182,-1874.0453,0.00016303,2]
[361270946,1747409445191,-185.1364,0.00016303,2]
[361270947,1747409445199,-151.0,0.00016328,2]
[361270948,1747409445208,-151.0,0.00016328,2]
[361270949,1747409445220,-599.60298507,0.00016328,2]
[361270950,1747409445230,-668.65185757,0.00016328,2]
[361270951,1747409445239,-3451.41209424,0.00016337,2]
[361270952,1747409445248,-40932.2481,0.00016338,2]
[361270953,1747409445258,-3101.51977795,0.00016365,2]
[361270954,1747409445267,-572.01,0.00016393,2]
[361270955,1747409445276,-796.0,0.00016402,2]
[361270956,1747409445285,-17632.66,0.00016412,2]
[361270957,1747409445294,-1089.639,0.00016425,2]
[361270958,1747409445303,-178.60626153,0.00016428,2]
[361270959,1747409445312,-5043.36611262,0.00016437,2]
[361270960,1747409445321,-317.38,0.00016437,2]
[361270961,1747409445330,-1000.0,0.00016437,2]
[361270962,1747409445339,-168.332102,0.00016438,2]
[361270963,1747409445348,-159.976629,0.00016438,2]
[361270964,1747409445358,-400.0,0.00016438,2]
[361270965,1747409445366,-500.0,0.00016438,2]
[361270966,1747409445375,-400.0,0.00016438,2]
[361270967,1747409445384,-400.0,0.00016438,2]
[361270968,1747409445393,-155.467163,0.00016438,2]
[361270969,1747409445402,-281.375605,0.00016438,2]
[361270970,1747409445411,-151.0,0.00016438,2]
[361270971,1747409445420,-400.0,0.00016438,2]
[361270972,1747409445429,-151.0,0.00016438,2]
[361270973,1747409445438,-778.65,0.00016438,2]
[361270974,1747409445448,-160.088683,0.00016438,2]
[361270975,1747409445457,-400.0,0.00016438,2]
[361270976,1747409445467,-594.61,0.00016438,2]
[361270977,1747409445477,-292.20978476,0.00016438,2]
[361270978,1747409445486,-151.0,0.00016438,2]
[361270979,1747409445495,-400.0,0.00016438,2]
[361270980,1747409445504,-400.0,0.00016438,2]
[361270982,1747409445775,-400.0,0.00016438,2]
[361270983,1747409445797,-400.0,0.00016438,2]
[361270984,1747409445807,-405.46,0.00016438,2]
[361270985,1747409445816,-400.0,0.00016438,2]
[361270986,1747409445826,-1308.25,0.00016438,2]
[361270987,1747409445835,-400.0,0.00016438,2]
[361270988,1747409445844,-400.0,0.00016438,2]
[361270989,1747409445853,-450.54232072,0.00016438,2]
[361270990,1747409445862,-400.0,0.00016438,2]
[361270991,1747409445872,-400.0,0.00016438,2]
[361270992,1747409445882,-241.03738042,0.00016438,2]
[361270994,1747409445892,-400.0,0.00016438,2]
[361270996,1747409445901,-373.73234687,0.00016438,2]
[361270997,1747409445911,-528.91,0.00016438,2]
[361270998,1747409445920,-437.17,0.00016438,2]
[361270999,1747409445930,-400.0,0.00016438,2]
[361271000,1747409445940,-400.0,0.00016438,2]
[361271001,1747409445949,-400.0,0.00016438,2]
[361271002,1747409445959,-400.0,0.00016438,2]
[361271003,1747409445969,-400.0,0.00016438,2]
[361271004,1747409445979,-400.0,0.00016438,2]
[361271005,1747409445989,-400.0,0.00016438,2]
[361271006,1747409446001,-525.96,0.00016438,2]
[361271007,1747409446017,-400.0,0.00016438,2]
[361271008,1747409446027,-663.69,0.00016438,2]
[361271009,1747409446037,-400.0,0.00016438,2]
[361271010,1747409446047,-434.81,0.00016438,2]
[361271011,1747409446059,-166.26452358,0.00016438,2]
[361271012,1747409446068,-438.71,0.00016438,2]
[361271013,1747409446077,-1439.14,0.00016438,2]
[361271014,1747409446087,-400.0,0.00016438,2]
[361271015,1747409446097,-444.35,0.00016438,2]
[361271016,1747409446106,-771.28,0.00016438,2]
[361271017,1747409446115,-464.73,0.00016438,2]
[361271018,1747409446124,-400.0,0.00016438,2]
[361271019,1747409446133,-531.68525257,0.00016438,2]
[361271020,1747409446143,-400.0,0.00016438,2]
[361271021,1747409446152,-400.0,0.00016438,2]
[361271022,1747409446164,-400.0,0.00016438,2]
[361271023,1747409446173,-622.61,0.00016438,2]
[361271024,1747409446182,-400.0,0.00016438,2]
[361271025,1747409446192,-400.0,0.00016438,2]
[361271026,1747409446201,-400.0,0.00016438,2]
[361271027,1747409446211,-502.4,0.00016438,2]
[361271028,1747409446223,-400.0,0.00016438,2]
[361271029,1747409446232,-400.0,0.00016438,2]
[361271030,1747409446241,-400.0,0.00016438,2]
[361271031,1747409446251,-400.0,0.00016438,2]
[361271032,1747409446261,-400.0,0.00016438,2]
[361271033,1747409446270,-400.0,0.00016438,2]
[361271034,1747409446279,-230.5585919,0.00016438,2]
[361271035,1747409446289,-400.0,0.00016438,2]
[361271036,1747409446298,-400.0,0.00016438,2]
[361271037,1747409446308,-855.58,0.00016438,2]
[361271038,1747409446317,-400.0,0.00016438,2]
[361271039,1747409446327,-400.0,0.00016438,2]
[361271040,1747409446337,-400.0,0.00016438,2]
[361271041,1747409446347,-400.0,0.00016438,2]
[361271042,1747409446357,-151.0,0.00016438,2]
[361271043,1747409446367,-400.0,0.00016438,2]
[361271044,1747409446384,-502.04074853,0.00016438,2]
[361271045,1747409446397,-400.0,0.00016438,2]
[361271047,1747409446406,-151.272878,0.00016438,2]
[361271049,1747409446416,-400.0,0.00016438,2]
[361271051,1747409446426,-400.0,0.00016438,2]
[361271053,1747409446435,-578.33,0.00016438,2]
[361271054,1747409446446,-400.0,0.00016438,2]
[361271055,1747409446456,-633.45,0.00016438,2]
[361271056,1747409446465,-400.0,0.00016438,2]
[361271057,1747409446476,-514.75,0.00016438,2]
[361271058,1747409446486,-400.0,0.00016438,2]
[361271059,1747409446496,-372.63,0.00016438,2]
[361271060,1747409446505,-400.0,0.00016438,2]
[361271061,1747409446514,-400.0,0.00016438,2]
[361271062,1747409446524,-400.0,0.00016438,2]
[361271063,1747409446534,-400.0,0.00016438,2]
[361271064,1747409446544,-400.0,0.00016438,2]
[361271065,1747409446553,-400.0,0.00016438,2]
[361271066,1747409446563,-400.0,0.00016438,2]
[361271067,1747409446573,-528.4,0.00016438,2]
[361271068,1747409446582,-400.0,0.00016438,2]
[361271069,1747409446592,-400.0,0.00016438,2]
[361271070,1747409446602,-400.0,0.00016438,2]
[361271073,1747409446611,-400.0,0.00016438,2]
[361271074,1747409446621,-1105.24,0.00016438,2]
[361271075,1747409446630,-539.7680766,0.00016438,2]
[361271076,1747409446640,-713.74,0.00016438,2]
[361271077,1747409446650,-400.0,0.00016438,2]
[361271078,1747409446660,-495.46,0.00016438,2]
[361271079,1747409446670,-400.0,0.00016438,2]
[361271080,1747409446680,-400.0,0.00016438,2]
[361271081,1747409446689,-400.0,0.00016438,2]
[361271082,1747409446699,-400.0,0.00016438,2]
[361271083,1747409446709,-400.0,0.00016438,2]
[361271084,1747409446720,-400.0,0.00016438,2]
[361271085,1747409446731,-196.21269446,0.00016438,2]
[361271086,1747409446741,-400.0,0.00016438,2]
[361271087,1747409446752,-400.0,0.00016438,2]
[361271088,1747409446762,-400.0,0.00016438,2]
[361271089,1747409446772,-400.0,0.00016438,2]
[361271090,1747409446782,-524.97799727,0.00016438,2]
[361271091,1747409446792,-400.0,0.00016438,2]
[361271092,1747409446802,-400.0,0.00016438,2]
[361271093,1747409446811,-400.0,0.00016438,2]
[361271094,1747409446821,-505.54,0.00016438,2]
[361271095,1747409446831,-403.28,0.00016438,2]
[361271096,1747409446840,-485.29,0.00016438,2]
[361271097,1747409446850,-400.0,0.00016438,2]
[361271098,1747409446861,-400.0,0.00016438,2]
[361271099,1747409446870,-404.43753463,0.00016438,2]
[361271100,1747409446880,-400.0,0.00016438,2]
[361271101,1747409446890,-400.0,0.00016438,2]
[361271102,1747409446900,-400.0,0.00016438,2]
[361271103,1747409446910,-400.0,0.00016438,2]
[361271104,1747409446921,-400.0,0.00016438,2]
[361271105,1747409446931,-400.0,0.00016438,2]
[361271106,1747409446941,-400.0,0.00016438,2]
[361271107,1747409446951,-400.0,0.00016438,2]
[361271108,1747409446961,-484.15,0.00016438,2]
[361271109,1747409446973,-400.0,0.00016438,2]
[361271110,1747409446983,-400.0,0.00016438,2]
[361271111,1747409446993,-400.0,0.00016438,2]
[361271112,1747409447004,-400.0,0.00016438,2]
[361271113,1747409447014,-400.0,0.00016438,2]
[361271114,1747409447023,-400.0,0.00016438,2]
[361271115,1747409447034,-400.0,0.00016438,2]
[361271116,1747409447044,-795.13,0.00016438,2]
[361271117,1747409447053,-400.0,0.00016438,2]
[361271118,1747409447063,-400.0,0.00016438,2]
[361271119,1747409447073,-151.0,0.00016438,2]
[361271120,1747409447083,-451.78,0.00016438,2]
[361271121,1747409447092,-400.0,0.00016438,2]
[361271122,1747409447102,-400.0,0.00016438,2]
[361271123,1747409447111,-400.0,0.00016438,2]
[361271124,1747409447121,-400.0,0.00016438,2]
[361271125,1747409447130,-400.0,0.00016438,2]
[361271126,1747409447139,-400.0,0.00016438,2]
[361271127,1747409447150,-248.27522624,0.00016438,2]
[361271128,1747409447160,-400.0,0.00016438,2]
[361271129,1747409447169,-500.0,0.00016438,2]
[361271130,1747409447178,-400.0,0.00016438,2]
[361271131,1747409447188,-400.0,0.00016438,2]
[361271132,1747409447197,-400.0,0.00016438,2]
[361271133,1747409447207,-167.44216735,0.00016438,2]
[361271134,1747409447216,-400.0,0.00016438,2]
[361271135,1747409447227,-400.0,0.00016438,2]
[361271136,1747409447237,-400.0,0.00016438,2]
[361271137,1747409447247,-400.0,0.00016438,2]
[361271138,1747409447256,-400.0,0.00016438,2]
[361271139,1747409447265,-165.5670839,0.00016438,2]
[361271140,1747409447275,-400.0,0.00016438,2]
[361271141,1747409447285,-260.77970728,0.00016438,2]
[361271142,1747409447294,-541.57,0.00016438,2]
[361271143,1747409447304,-400.0,0.00016438,2]
[361271144,1747409447313,-801.06,0.00016438,2]
[361271145,1747409447323,-400.0,0.00016438,2]
[361271146,1747409447332,-400.0,0.00016438,2]
[361271147,1747409447342,-400.0,0.00016438,2]
[361271148,1747409447351,-484.68870023,0.00016438,2]
[361271149,1747409447361,-594.76,0.00016438,2]
[361271150,1747409447370,-400.0,0.00016438,2]
[361271151,1747409447380,-578.79,0.00016438,2]
[361271152,1747409447390,-400.0,0.00016438,2]
[361271153,1747409447399,-400.0,0.00016438,2]
[361271154,1747409447409,-400.0,0.00016438,2]
[361271155,1747409447419,-400.0,0.00016438,2]
[361271156,1747409447428,-728.46,0.00016438,2]
[361271157,1747409447438,-517.69,0.00016438,2]
[361271158,1747409447448,-400.0,0.00016438,2]
[361271159,1747409447458,-400.0,0.00016438,2]
[361271160,1747409447468,-400.0,0.00016438,2]
[361271161,1747409447478,-400.0,0.00016438,2]
[361271162,1747409447487,-400.0,0.00016438,2]
[361271163,1747409447497,-400.0,0.00016438,2]
[361271164,1747409447507,-281.595959,0.00016438,2]
[361271165,1747409447516,-400.0,0.00016438,2]
[361271166,1747409447526,-400.0,0.00016438,2]
[361271167,1747409447536,-709.26,0.00016438,2]
[361271168,1747409447546,-400.0,0.00016438,2]
[361271169,1747409447556,-400.0,0.00016438,2]
[361271170,1747409447566,-151.0,0.00016438,2]
[361271171,1747409447576,-400.0,0.00016438,2]
[361271172,1747409447585,-400.0,0.00016438,2]
[361271173,1747409447596,-400.0,0.00016438,2]
[361271174,1747409447605,-578.24,0.00016438,2]
[361271175,1747409447615,-151.0,0.00016438,2]
[361271176,1747409447624,-858.08,0.00016438,2]
[361271177,1747409447634,-685.28,0.00016438,2]
[361271178,1747409447644,-151.0,0.00016438,2]
[361271179,1747409447657,-400.0,0.00016438,2]
[361271180,1747409447666,-400.0,0.00016438,2]
[361271181,1747409447676,-400.0,0.00016438,2]
[361271182,1747409447686,-492.49,0.00016438,2]
[361271183,1747409447695,-424.11,0.00016438,2]
[361271184,1747409447704,-400.0,0.00016438,2]
[361271185,1747409447714,-400.0,0.00016438,2]
[361271186,1747409447727,-400.0,0.00016438,2]
[361271187,1747409447737,-400.0,0.00016438,2]
[361271188,1747409447747,-504.27505154,0.00016438,2]
[361271189,1747409447756,-400.0,0.00016438,2]
[361271190,1747409447767,-400.0,0.00016438,2]
[361271191,1747409447776,-353.03822898,0.00016438,2]
[361271192,1747409447786,-400.0,0.00016438,2]
[361271193,1747409447796,-400.0,0.00016438,2]
[361271194,1747409447805,-400.0,0.00016438,2]
[361271195,1747409447814,-400.0,0.00016438,2]
[361271196,1747409447824,-400.0,0.00016438,2]
[361271197,1747409447833,-400.0,0.00016438,2]
[361271198,1747409447842,-151.0,0.00016438,2]
[361271199,1747409447852,-400.0,0.00016438,2]
[361271200,1747409447862,-400.0,0.00016438,2]
[361271201,1747409447871,-400.0,0.00016438,2]
[361271202,1747409447881,-400.0,0.00016438,2]
[361271203,1747409447891,-151.0,0.00016438,2]
[361271204,1747409447900,-151.0,0.00016438,2]
[361271205,1747409447910,-508.64,0.00016438,2]
[361271206,1747409447919,-400.0,0.00016438,2]
[361271207,1747409447929,-801.39,0.00016438,2]
[361271208,1747409447939,-400.0,0.00016438,2]
[361271209,1747409447948,-400.0,0.00016438,2]
[361271210,1747409447959,-422.27,0.00016438,2]
[361271211,1747409447968,-400.0,0.00016438,2]
[361271212,1747409447980,-151.0,0.00016438,2]
[361271213,1747409447990,-151.0,0.00016438,2]
[361271214,1747409448002,-1275.71,0.00016438,2]
[361271215,1747409448012,-400.0,0.00016438,2]
[361271216,1747409448021,-151.0,0.00016438,2]
[361271217,1747409448031,-400.0,0.00016438,2]
[361271218,1747409448040,-464.41,0.00016438,2]
[361271219,1747409448050,-516.79,0.00016438,2]
[361271220,1747409448060,-400.0,0.00016438,2]
[361271221,1747409448071,-1073.54,0.00016438,2]
[361271222,1747409448080,-400.0,0.00016438,2]
[361271223,1747409448090,-671.25,0.00016438,2]
[361271224,1747409448099,-400.0,0.00016438,2]
[361271225,1747409448109,-1116.31,0.00016438,2]
[361271226,1747409448118,-400.0,0.00016438,2]
[361271227,1747409448127,-957.47,0.00016438,2]
[361271228,1747409448137,-400.0,0.00016438,2]
[361271229,1747409448146,-1279.84,0.00016438,2]
[361271230,1747409448160,-400.0,0.00016438,2]
[361271231,1747409448169,-471.95669584,0.00016438,2]
[361271232,1747409448179,-400.0,0.00016438,2]
[361271233,1747409448188,-440.25468141,0.00016438,2]
[361271234,1747409448197,-400.0,0.00016438,2]
[361271235,1747409448206,-854.1,0.00016438,2]
[361271236,1747409448215,-400.0,0.00016438,2]
[361271237,1747409448226,-400.0,0.00016438,2]
[361271238,1747409448235,-400.0,0.00016438,2]
[361271239,1747409448244,-400.0,0.00016438,2]
[361271240,1747409448253,-400.0,0.00016438,2]
[361271241,1747409448263,-462.68,0.00016438,2]
[361271242,1747409448272,-1826.2,0.00016438,2]
[361271243,1747409448281,-923.97,0.00016438,2]
[361271244,1747409448291,-400.0,0.00016438,2]
[361271245,1747409448300,-400.0,0.00016438,2]
[361271246,1747409448309,-400.0,0.00016438,2]
[361271247,1747409448318,-429.4,0.00016438,2]
[361271248,1747409448327,-400.0,0.00016438,2]
[361271249,1747409448336,-400.0,0.00016438,2]
[361271250,1747409448347,-400.0,0.00016438,2]
[361271251,1747409448356,-400.0,0.00016438,2]
[361271252,1747409448365,-400.0,0.00016438,2]
[361271253,1747409448375,-865.69,0.00016438,2]
[361271254,1747409448384,-1670.82,0.00016438,2]
[361271255,1747409448393,-151.0,0.00016438,2]
[361271256,1747409448402,-166.253305,0.00016438,2]
[361271257,1747409448411,-400.0,0.00016438,2]
[361271258,1747409448420,-641.33,0.00016438,2]
[361271259,1747409448430,-400.0,0.00016438,2]
[361271260,1747409448439,-165.20153337,0.00016438,2]
[361271261,1747409448448,-400.0,0.00016438,2]
[361271262,1747409448457,-445.18,0.00016438,2]
[361271263,1747409448467,-400.0,0.00016438,2]
[361271264,1747409448477,-400.0,0.00016438,2]
[361271265,1747409448487,-400.0,0.00016438,2]
[361271266,1747409448497,-400.0,0.00016438,2]
[361271267,1747409448506,-403.7,0.00016438,2]
[361271268,1747409448516,-603.37,0.00016438,2]
[361271269,1747409448526,-520.02,0.00016438,2]
[361271270,1747409448535,-400.0,0.00016438,2]
[361271271,1747409448545,-553.69,0.00016438,2]
[361271272,1747409448555,-400.0,0.00016438,2]
[361271273,1747409448564,-928.24,0.00016438,2]
[361271274,1747409448574,-400.0,0.00016438,2]
[361271275,1747409448583,-232.83833008,0.00016438,2]
[361271276,1747409448593,-698.4,0.00016438,2]
[361271277,1747409448603,-1112.45,0.00016438,2]
[361271278,1747409448612,-567.64,0.00016438,2]
[361271279,1747409448622,-500.0,0.00016438,2]
[361271280,1747409448632,-408.4,0.00016438,2]
[361271281,1747409448642,-990.71,0.00016438,2]
[361271282,1747409448651,-400.0,0.00016438,2]
[361271283,1747409448661,-400.0,0.00016438,2]
[361271284,1747409448671,-1046.52,0.00016438,2]
[361271285,1747409448680,-151.0,0.00016438,2]
[361271286,1747409448689,-579.43,0.00016438,2]
[361271287,1747409448699,-400.0,0.00016438,2]
[361271288,1747409448710,-400.0,0.00016438,2]
[361271289,1747409448726,-400.0,0.00016438,2]
[361271290,1747409448737,-1000.0,0.00016438,2]
[361271291,1747409448747,-400.0,0.00016438,2]
[361271292,1747409448757,-400.0,0.00016438,2]
[361271293,1747409448767,-400.0,0.00016438,2]
[361271294,1747409448777,-400.0,0.00016438,2]
[361271295,1747409448787,-1352.18,0.00016438,2]
[361271296,1747409448798,-400.0,0.00016438,2]
[361271297,1747409448808,-400.0,0.00016438,2]
[361271298,1747409448818,-400.0,0.00016438,2]
[361271299,1747409448829,-511.18,0.00016438,2]
[361271300,1747409448839,-400.0,0.00016438,2]
[361271301,1747409448850,-161.82817151,0.00016438,2]
[361271302,1747409448892,-253.55182849,0.00016438,2]
[361271303,1747409448903,-400.0,0.00016438,2]
[361271304,1747409448913,-400.0,0.00016438,2]
[361271305,1747409448923,-695.6,0.00016438,2]
[361271306,1747409448934,-571.79,0.00016438,2]
[361271307,1747409448944,-400.0,0.00016438,2]
[361271308,1747409448954,-1578.72,0.00016438,2]
[361271309,1747409448964,-536.33817151,0.00016438,2]
[361271310,1747409448980,-592.83182849,0.00016438,2]
[361271311,1747409448992,-169.899327,0.00016438,2]
[361271312,1747409449003,-207.289549,0.00016438,2]
[361271313,1747409449012,-109.83744421,0.00016438,2]
[361271314,1747409449060,-840.14255579,0.00016438,2]